[Event "XII Cracow ICC-A 2024"]
[Site "Krakow"]
[Date "2024.06.25"]
[Round "5.22"]
[White "Jake Shanty"]
[Black "Suder, Jakub"]
[Result "1/2-1/2"]
[ECO "A05"]
[WhiteElo "2217"]
[BlackElo "2328"]
[Annotator "RC"]
[PlyCount "97"]
[EventDate "2024.06.20"]
[EventType "swiss"]
[EventCountry "POL"]
[SourceTitle "playchess.com"]
[Source "ChessBase"]
[SourceQuality "1"]
[TimeControl "40/5400+30:1800+30"]

1. Nf3 {[%emt 0:00:05]} d5 {[%emt 0:00:07]} 2. g3 {[%emt 0:00:28]} Nf6 {[%emt 0:00:21]} 3. Bg2 {[%emt 0:00:30]} Bf5 {[%emt 0:00:17]} 4. O-O {[%emt 0:01:02]} e6 {[%emt 0:00:12]} 5. d4 {[%emt 0:01:13]} h6 {[%emt 0:00:18]} 6. c4 {[%emt 0:04:55]} c6 {[%emt 0:01:02]} 7. Nc3 {[%emt 0:04:14]} Nbd7 {[%emt 0:00:58]} 8. b3 {[%emt 0:04:59]} Bb4 {[%emt 0:03:54]} 9. Bd2 {[%emt 0:05:38]} Be7 {[%emt 0:02:30]} 10. c5 {[%emt 0:07:48]} Ne4 {[%emt 0:01:46]} 11. b4 {[%emt 0:03:14]} O-O {[%emt 0:02:57]} 12. e3 {[%emt 0:05:25]} Bf6 {[%emt 0:04:50]} 13. Qb3 {[%emt 0:09:38]} Nxd2 {[%emt 0:08:29]} 14. Nxd2 {[%emt 0:00:47]} e5 {[%emt 0:01:42]} 15. dxe5 {[%emt 0:03:14]} Bxe5 {[%emt 0:01:32]} 16. e4 {[%emt 0:09:03]} dxe4 {[%emt 0:01:01]} 17. Ndxe4 {[%emt 0:01:48]} Be6 {[%emt 0:07:28]} 18. Qc2 {[%emt 0:02:48]} a5 {[%emt 0:02:28]} 19. a3 {[%emt 0:02:40]} f5 {[%emt 0:05:32]} 20. Nd2 {[%emt 0:06:21]} axb4 {[%emt 0:04:58]} 21. axb4 {[%emt 0:00:20]} Qf6 {[%emt 0:01:04]} 22. Rac1 {[%emt 0:03:17]} Kh8 {[%emt 0:03:27]} 23. Nf3 {[%emt 0:03:03]} Bc7 {[%emt 0:04:31]} 24. Ra1 {[%emt 0:04:24]} Rxa1 {[%emt 0:05:35]} 25. Rxa1 {[%emt 0:00:10]} f4 {[%emt 0:00:16]} 26. Re1 {[%emt 0:04:12]} Ne5 {[%emt 0:03:58]} 27. Ne4 {[%emt 0:06:51]} Nxf3+ {[%emt 0:01:44]} 28. Bxf3 {[%emt 0:00:07]} Qg6 {[%emt 0:03:25]} 29. Qe2 {[%emt 0:01:52]} fxg3 {[%emt 0:00:23]} 30. hxg3 {[%emt 0:00:58]} Bd5 {[%emt 0:02:45]} 31. Bh5 {[%emt 0:02:39]} Qf5 {[%emt 0:01:36]} 32. Bg4 {[%emt 0:00:47]} Qf7 {[%emt 0:00:50]} 33. Nd6 {[%emt 0:01:09]} Qf6 {[%emt 0:12:42]} 34. Ne8 {[%emt 0:00:57]} Qd8 {[%emt 0:01:08]} 35. Nxc7 {[%emt 0:00:36]} Qxc7 {[%emt 0:00:06]} 36. Qe7 {[%emt 0:00:29]} Qb8 {[%emt 0:01:13]} 37. Bh5 {[%emt 0:00:39]} Kg8 {[%emt 0:01:28]} 38. Bg6 {[%emt 0:00:31]} Qc8 {[%emt 0:02:04]} 39. f4 {[%emt 0:00:33]} Rxf4 {[%emt 0:02:59]} 40. Qe8+ {[%emt 0:00:25]} Rf8 {[%emt 0:02:28]} 41. Qxc8 {[%emt 0:30:33]} Rxc8 {[%emt 0:30:13]} 42. Re7 {[%emt 0:00:29]} Rb8 {[%emt 0:01:41]} 43. Kf2 {[%emt 0:00:00]} Kf8 {[%emt 0:00:00]} 44. Rd7 {[%emt 0:00:00]} b6 {[%emt 0:00:00]} 45. b5 {[%emt 0:00:00]} bxc5 {[%emt 0:00:00]} 46. bxc6 Bxc6 {[%emt 0:00:00]} 47. Rf7+ {[%emt 0:00:00]} Kg8 {[%emt 0:00:00]} 48. Rc7 {[%emt 0:00:00]} Bb7 {[%emt 0:00:00]} 49. Rxc5 {[%emt 0:00:00]} 1/2-1/2

[Event "XII Cracow ICC-A 2024"]
[Site "Krakow"]
[Date "2024.06.25"]
[Round "5.23"]
[White "Meessen, Rudolf"]
[Black "Czernek, Tymon"]
[Result "0-1"]
[ECO "D01"]
[WhiteElo "2182"]
[BlackElo "2316"]
[Annotator "RC"]
[PlyCount "100"]
[EventDate "2024.06.20"]
[EventType "swiss"]
[EventCountry "POL"]
[SourceTitle "playchess.com"]
[Source "ChessBase"]
[SourceQuality "1"]
[TimeControl "40/5400+30:1800+30"]

1. d4 {[%emt 0:00:02]} Nf6 {[%emt 0:01:00]} 2. Nc3 {[%emt 0:00:57]} d5 {[%emt 0:00:05]} 3. Bf4 {[%emt 0:00:09]} e6 {[%emt 0:00:04]} 4. Nb5 {[%emt 0:00:32]} Na6 {[%emt 0:00:04]} 5. e3 {[%emt 0:00:05]} Be7 {[%emt 0:00:03]} 6. Nf3 {[%emt 0:01:17]} O-O {[%emt 0:00:10]} 7. h4 {[%emt 0:00:02]} c6 {[%emt 0:00:05]} 8. Nc3 {[%emt 0:00:05]} Qa5 {[%emt 0:00:15]} 9. Be2 {[%emt 0:01:08]} Ne4 {[%emt 0:01:54]} 10. O-O {[%emt 0:00:19]} Nxc3 {[%emt 0:06:04]} 11. bxc3 {[%emt 0:00:02]} Qxc3 {[%emt 0:02:02]} 12. h5 {[%emt 0:00:55]} Qa5 {[%emt 0:05:16]} 13. h6 {[%emt 0:02:37]} g6 {[%emt 0:00:18]} 14. c4 {[%emt 0:07:35]} Nc7 {[%emt 0:02:29]} 15. c5 {[%emt 0:02:07]} Ne8 {[%emt 0:02:19]} 16. Bd3 {[%emt 0:03:18]} Qd8 {[%emt 0:02:20]} 17. a4 {[%emt 0:07:57]} b6 {[%emt 0:11:33]} 18. Ne5 {[%emt 0:01:13]} Bd7 {[%emt 0:00:28]} 19. Qc2 {[%emt 0:03:07]} bxc5 {[%emt 0:01:02]} 20. Ba6 {[%emt 0:04:28]} f6 {[%emt 0:04:09]} 21. Nxg6 {[%emt 0:06:07]} hxg6 {[%emt 0:01:27]} 22. Qxg6+ {[%emt 0:00:09]} Kh8 {[%emt 0:00:04]} 23. h7 {[%emt 0:05:51]} Nd6 {[%emt 0:04:08]} 24. Bh6 {[%emt 0:08:52]} Nf5 {[%emt 0:02:44]} 25. Bxf8 {[%emt 0:00:13]} Qxf8 {[%emt 0:00:02]} 26. dxc5 {[%emt 0:05:11]} Bxc5 {[%emt 0:02:51]} 27. Rfc1 {[%emt 0:00:22]} Bb4 {[%emt 0:01:13]} 28. Bb7 {[%emt 0:01:16]} Rd8 {[%emt 0:06:12]} 29. Qg8+ {[%emt 0:08:52]} Qxg8 {[%emt 0:00:01]} 30. hxg8=Q+ {[%emt 0:00:09]} Kxg8 {[%emt 0:00:02]} 31. Bxc6 {[%emt 0:00:10]} a5 {[%emt 0:00:25]} 32. e4 {[%emt 0:00:30]} Nd4 {[%emt 0:02:59]} 33. Bxd7 {[%emt 0:00:20]} Rxd7 {[%emt 0:00:06]} 34. Rc8+ {[%emt 0:00:13]} Kf7 {[%emt 0:00:10]} 35. exd5 {[%emt 0:00:27]} exd5 {[%emt 0:00:04]} 36. Rh8 {[%emt 0:07:16]} Kg7 {[%emt 0:00:30]} 37. Rh4 {[%emt 0:01:31]} Ne2+ {[%emt 0:01:51]} 38. Kf1 {[%emt 0:02:22]} Nc3 {[%emt 0:00:05]} 39. g4 {[%emt 0:00:12]} d4 {[%emt 0:01:28]} 40. Kg2 {[%emt 0:00:10]} Bf8 {[%emt 0:02:05]} 41. Rah1 {[%emt 0:36:29]} Kf7 {[%emt 0:30:22]} 42. f4 {[%emt 0:01:35]} d3 {[%emt 0:00:27]} 43. Rh7+ {[%emt 0:00:08]} Bg7 {[%emt 0:00:12]} 44. R7h3 {[%emt 0:00:15]} Nxa4 {[%emt 0:02:13]} 45. Rd1 {[%emt 0:00:17]} Nb2 {[%emt 0:00:52]} 46. Rd2 {[%emt 0:00:06]} f5 {[%emt 0:00:23]} 47. g5 {[%emt 0:02:42]} a4 {[%emt 0:00:41]} 48. Rg3 {[%emt 0:01:54]} Bc3 {[%emt 0:00:19]} 49. g6+ {[%emt 0:02:11]} Kg7 {[%emt 0:00:02]} 50. Rh3 {[%emt 0:01:16]} Rd6 {[%emt 0:00:01]} 0-1

[Event "XII Cracow ICC-A 2024"]
[Site "Krakow"]
[Date "2024.06.25"]
[Round "5.24"]
[White "Backiel, Hubert"]
[Black "Mikrut, Dariusz"]
[Result "1-0"]
[ECO "C95"]
[WhiteElo "2200"]
[BlackElo "2309"]
[Annotator "RC"]
[PlyCount "89"]
[EventDate "2024.06.20"]
[EventType "swiss"]
[EventCountry "POL"]
[SourceTitle "playchess.com"]
[Source "ChessBase"]
[SourceQuality "1"]
[TimeControl "40/5400+30:1800+30"]

1. e4 {[%emt 0:00:07]} e5 {[%emt 0:07:11]} 2. Nf3 {[%emt 0:00:09]} Nc6 {[%emt 0:00:07]} 3. Bb5 {[%emt 0:00:05]} a6 {[%emt 0:00:06]} 4. Ba4 {[%emt 0:00:04]} Nf6 {[%emt 0:00:05]} 5. O-O {[%emt 0:00:07]} Be7 {[%emt 0:00:03]} 6. Re1 {[%emt 0:00:07]} b5 {[%emt 0:00:04]} 7. Bb3 {[%emt 0:00:04]} d6 {[%emt 0:00:06]} 8. c3 {[%emt 0:00:05]} O-O {[%emt 0:00:10]} 9. h3 {[%emt 0:00:04]} Nb8 {[%emt 0:00:06]} 10. d4 {[%emt 0:00:05]} Nbd7 {[%emt 0:00:06]} 11. Nbd2 {[%emt 0:00:05]} Bb7 {[%emt 0:00:56]} 12. Bc2 {[%emt 0:00:24]} Re8 {[%emt 0:00:34]} 13. Nf1 {[%emt 0:00:24]} Bf8 {[%emt 0:00:20]} 14. Ng3 {[%emt 0:00:05]} g6 {[%emt 0:00:04]} 15. a4 {[%emt 0:00:10]} Bg7 {[%emt 0:01:45]} 16. Bd3 {[%emt 0:04:51]} c6 {[%emt 0:11:09]} 17. Bg5 {[%emt 0:01:56]} h6 {[%emt 0:01:02]} 18. Be3 {[%emt 0:00:06]} Qc7 {[%emt 0:09:08]} 19. Qd2 {[%emt 0:00:31]} Kh7 {[%emt 0:00:37]} 20. dxe5 {[%emt 0:01:41]} dxe5 {[%emt 0:04:01]} 21. c4 {[%emt 0:00:06]} bxa4 {[%emt 0:11:47]} 22. c5 {[%emt 0:02:50]} Nf8 {[%emt 0:01:16]} 23. Rxa4 {[%emt 0:02:36]} Ne6 {[%emt 0:00:27]} 24. Rea1 {[%emt 0:01:18]} Nd7 {[%emt 0:03:32]} 25. Qc3 {[%emt 0:28:27]} Qc8 {[%emt 0:09:47]} 26. Qa3 {[%emt 0:09:29]} Nc7 {[%emt 0:04:36]} 27. Bc4 {[%emt 0:06:07]} Re7 {[%emt 0:02:12]} 28. Qb3 {[%emt 0:03:53]} Ne6 {[%emt 0:02:42]} 29. Ra5 {[%emt 0:01:03]} Ndf8 {[%emt 0:01:46]} 30. Qa2 {[%emt 0:00:47]} Nd7 {[%emt 0:02:44]} 31. b4 {[%emt 0:02:34]} Rb8 {[%emt 0:09:05]} 32. Rd1 {[%emt 0:03:27]} Ndf8 {[%emt 0:02:54]} 33. Rb1 {[%emt 0:12:33]} Nd7 {[%emt 0:01:24]} 34. Rd1 {[%emt 0:01:35]} Ndf8 {[%emt 0:02:28]} 35. Rb1 {[%emt 0:00:06]} Nd7 {[%emt 0:00:58]} 36. Ra1 {[%emt 0:04:35]} Ndf8 {[%emt 0:01:42]} 37. Bd2 {[%emt 0:01:59]} Rd7 {[%emt 0:05:29]} 38. Bc3 {[%emt 0:01:31]} Qc7 {[%emt 0:01:48]} 39. Bxa6 {[%emt 0:05:16]} Bxa6 {[%emt 0:00:23]} 40. Rxa6 {[%emt 0:00:06]} Nf4 {[%emt 0:04:38]} 41. Ra7 {[%emt 0:32:57]} Rb7 {[%emt 0:04:53]} 42. Rxb7 {[%emt 0:00:00]} Qxb7 {[%emt 0:00:07]} 43. Bxe5 {[%emt 0:00:00]} Bxe5 44. Nxe5 {[%emt 0:00:00]} Re7 {[%emt 0:08:40]} 45. Qa8 {[%emt 0:00:00]} 1-0